fUSD/lending_fUSD_20250202
["ID","MTS","AMOUNT","RATE_DAILY","PERIOD"]
[351274970,1738505461777,-500.0,0.00011232,2]
[351274971,1738505461787,-500.0,0.00011232,2]
[351274972,1738505461796,-500.0,0.00011232,2]
[351274973,1738505461805,-151.0,0.00011232,2]
[351274974,1738505461815,-500.0,0.00011232,2]
[351274975,1738505461824,-151.0,0.00011232,2]
[351274976,1738505461833,-500.0,0.00011232,2]
[351274977,1738505461843,-625.97,0.00011232,2]
[351274978,1738505461852,-500.0,0.00011232,2]
[351274979,1738505461861,-500.0,0.00011232,2]
[351274980,1738505461871,-500.0,0.00011232,2]
[351274981,1738505461881,-500.0,0.00011232,2]
[351274982,1738505461890,-500.0,0.00011232,2]
[351274983,1738505461900,-500.0,0.00011232,2]
[351274984,1738505461911,-213.79315552,0.00011232,2]
[351274985,1738505461920,-508.6758061,0.00011232,2]
[351274986,1738505461932,-235.48985618,0.00011232,2]
[351274987,1738505461941,-500.0,0.00011232,2]
[351274988,1738505461951,-500.0,0.00011232,2]
[351274989,1738505461960,-661.86,0.00011232,2]
[351274990,1738505461970,-552.57,0.00011232,2]
[351274991,1738505461979,-3015.63,0.00011232,2]
[351274992,1738505461989,-500.0,0.00011232,2]
[351274993,1738505461998,-500.0,0.00011232,2]
[351274994,1738505462008,-500.0,0.00011232,2]
[351274995,1738505462017,-635.12,0.00011232,2]
[351274996,1738505462026,-511.08,0.00011232,2]
[351274997,1738505462036,-1112.86,0.00011232,2]
[351274998,1738505462045,-910.85,0.00011232,2]
[351274999,1738505462054,-500.0,0.00011232,2]
[351275000,1738505462063,-500.0,0.00011232,2]
[351275001,1738505462072,-500.0,0.00011232,2]
[351275002,1738505462081,-500.0,0.00011232,2]
[351275003,1738505462091,-738.14,0.00011232,2]
[351275004,1738505462100,-500.0,0.00011232,2]
[351275005,1738505462109,-500.0,0.00011232,2]
[351275006,1738505462119,-1482.76,0.00011232,2]
[351275007,1738505462128,-500.0,0.00011232,2]
[351275008,1738505462137,-500.0,0.00011232,2]
[351275009,1738505462147,-500.0,0.00011232,2]
[351275010,1738505462156,-500.0,0.00011232,2]
[351275011,1738505462166,-545.77,0.00011232,2]
[351275012,1738505462175,-500.0,0.00011232,2]
[351275013,1738505462190,-735.2,0.00011232,2]
[351275014,1738505462199,-500.0,0.00011232,2]
[351275015,1738505462209,-717.38,0.00011232,2]
[351275016,1738505462218,-500.0,0.00011232,2]
[351275017,1738505462227,-500.0,0.00011232,2]
[351275018,1738505462236,-500.0,0.00011232,2]
[351275019,1738505462246,-500.0,0.00011232,2]
[351275020,1738505462255,-2333.39,0.00011232,2]
[351275021,1738505462265,-500.0,0.00011232,2]
[351275022,1738505462274,-500.0,0.00011232,2]
[351275023,1738505462284,-618.28,0.00011232,2]
[351275024,1738505462295,-500.0,0.00011232,2]
[351275025,1738505462304,-500.0,0.00011232,2]
[351275026,1738505462314,-500.0,0.00011232,2]
[351275027,1738505462324,-500.0,0.00011232,2]
[351275028,1738505462334,-500.0,0.00011232,2]
[351275029,1738505462344,-500.0,0.00011232,2]
[351275030,1738505462353,-2305.89,0.00011232,2]
[351275031,1738505462363,-500.0,0.00011232,2]
[351275032,1738505462372,-703.3,0.00011232,2]
[351275033,1738505462382,-2217.46,0.00011232,2]
[351275034,1738505462391,-573.42,0.00011232,2]
[351275035,1738505462401,-500.0,0.00011232,2]
[351275036,1738505462411,-510.46545206,0.00011232,2]
[351275037,1738505462420,-500.0,0.00011232,2]
[351275038,1738505462432,-500.0,0.00011232,2]
[351275039,1738505462442,-2053.36,0.00011232,2]
[351275040,1738505462452,-1106.04,0.00011232,2]
[351275041,1738505462462,-2139.13,0.00011232,2]
[351275042,1738505462472,-500.0,0.00011232,2]
[351275043,1738505462482,-500.0,0.00011232,2]
[351275044,1738505462492,-500.0,0.00011232,2]
[351275045,1738505462502,-1316.15,0.00011232,2]
[351275046,1738505462512,-500.0,0.00011232,2]
[351275047,1738505462524,-500.0,0.00011232,2]
[351275048,1738505462534,-500.0,0.00011232,2]
[351275049,1738505462544,-500.0,0.00011232,2]
[351275050,1738505462553,-500.0,0.00011232,2]
[351275051,1738505462564,-593.48595702,0.00011232,2]
[351275052,1738505462574,-500.0,0.00011232,2]
[351275053,1738505462583,-548.83,0.00011232,2]
[351275054,1738505462594,-553.21,0.00011232,2]
[351275055,1738505462604,-525.3,0.00011232,2]
[351275056,1738505462615,-500.0,0.00011232,2]
[351275057,1738505462625,-527.92190911,0.00011232,2]
[351275058,1738505462634,-500.0,0.00011232,2]
[351275059,1738505462644,-500.0,0.00011232,2]
[351275060,1738505462654,-2325.54,0.00011232,2]
[351275061,1738505462663,-1109.74,0.00011232,2]
[351275062,1738505462673,-500.44,0.00011232,2]
[351275063,1738505462689,-681.73,0.00011232,2]
[351275064,1738505462698,-500.0,0.00011232,2]
[351275065,1738505462709,-500.0,0.00011232,2]
[351275066,1738505462719,-326.06053272,0.00011232,2]
[351275067,1738505462729,-677.93,0.00011232,2]
[351275068,1738505462739,-513.34,0.00011232,2]
[351275069,1738505462758,-500.0,0.00011232,2]
[351275070,1738505462773,-500.0,0.00011232,2]
[351275071,1738505462786,-500.0,0.00011232,2]
[351275072,1738505462801,-1154.2,0.00011232,2]
[351275073,1738505462817,-2022.69,0.00011232,2]
[351275074,1738505462832,-500.0,0.00011232,2]
[351275075,1738505462848,-500.0,0.00011232,2]
[351275076,1738505462862,-500.0,0.00011232,2]
[351275077,1738505462873,-685.35,0.00011232,2]
[351275078,1738505462888,-505.19980575,0.00011232,2]
[351275079,1738505462902,-500.0,0.00011232,2]
[351275080,1738505462917,-500.0,0.00011232,2]
[351275081,1738505462935,-500.0,0.00011232,2]
[351275082,1738505462949,-500.0,0.00011232,2]
[351275083,1738505462965,-500.0,0.00011232,2]
[351275084,1738505462980,-500.0,0.00011232,2]
[351275085,1738505462993,-500.0,0.00011232,2]
[351275086,1738505463007,-500.0,0.00011232,2]
[351275087,1738505463023,-500.0,0.00011232,2]
[351275088,1738505463038,-550.64,0.00011232,2]
[351275089,1738505463052,-1342.11,0.00011232,2]
[351275090,1738505463065,-500.0,0.00011232,2]
[351275091,1738505463079,-2093.39,0.00011232,2]
[351275092,1738505463097,-500.0,0.00011232,2]
[351275093,1738505463109,-880.18,0.00011232,2]
[351275094,1738505463122,-1643.92,0.00011232,2]
[351275095,1738505463138,-500.0,0.00011232,2]
[351275096,1738505463152,-158.90352934,0.00011232,2]
[351275097,1738505463164,-793.33,0.00011232,2]
[351275098,1738505463181,-500.0,0.00011232,2]
[351275099,1738505463195,-500.0,0.00011232,2]
[351275100,1738505463208,-500.0,0.00011232,2]
[351275101,1738505463222,-1232.16,0.00011232,2]
[351275102,1738505463236,-500.0,0.00011232,2]
[351275103,1738505463249,-534.34,0.00011232,2]
[351275104,1738505463262,-588.54,0.00011232,2]
[351275105,1738505463274,-500.0,0.00011232,2]
[351275106,1738505463288,-538.87,0.00011232,2]
[351275107,1738505463300,-793.28,0.00011232,2]
[351275108,1738505463313,-500.0,0.00011232,2]
[351275109,1738505463325,-1592.88,0.00011232,2]
[351275110,1738505463339,-616.53,0.00011232,2]
[351275111,1738505463352,-500.0,0.00011232,2]
[351275112,1738505463364,-500.0,0.00011232,2]
[351275113,1738505463378,-1854.87,0.00011232,2]
[351275114,1738505463391,-1690.33,0.00011232,2]
[351275115,1738505463404,-500.0,0.00011232,2]
[351275116,1738505463417,-500.0,0.00011232,2]
[351275117,1738505463433,-534.43,0.00011232,2]
[351275118,1738505463447,-500.0,0.00011232,2]
[351275119,1738505463461,-500.0,0.00011232,2]
[351275120,1738505463474,-508.93,0.00011232,2]
[351275121,1738505463488,-500.0,0.00011232,2]
[351275122,1738505463501,-637.72,0.00011232,2]
[351275123,1738505463514,-500.0,0.00011232,2]
[351275124,1738505463531,-1150.84,0.00011232,2]
[351275125,1738505463544,-508.66,0.00011232,2]
[351275126,1738505463558,-500.0,0.00011232,2]
[351275127,1738505463571,-586.07,0.00011232,2]
[351275128,1738505463584,-500.0,0.00011232,2]
[351275129,1738505463598,-800.25,0.00011232,2]
[351275130,1738505463611,-731.54,0.00011232,2]
[351275131,1738505463625,-500.0,0.00011232,2]
[351275132,1738505463638,-1305.07,0.00011232,2]
[351275133,1738505463651,-1841.9,0.00011232,2]
[351275134,1738505463664,-734.22,0.00011232,2]
[351275135,1738505463682,-500.0,0.00011232,2]
[351275136,1738505463695,-500.0,0.00011232,2]
[351275137,1738505463708,-1731.58,0.00011232,2]
[351275138,1738505463722,-573.1,0.00011232,2]
[351275139,1738505463735,-500.0,0.00011232,2]
[351275140,1738505463748,-500.0,0.00011232,2]
[351275141,1738505463762,-500.0,0.00011232,2]
[351275142,1738505463775,-1366.78,0.00011232,2]
[351275143,1738505463788,-500.0,0.00011232,2]
[351275144,1738505463801,-500.0,0.00011232,2]
[351275145,1738505463814,-521.42,0.00011232,2]
[351275146,1738505463828,-500.0,0.00011232,2]
[351275147,1738505463840,-1447.06,0.00011232,2]
[351275148,1738505463853,-500.0,0.00011232,2]
[351275149,1738505463867,-955.56,0.00011232,2]
[351275150,1738505463880,-500.0,0.00011232,2]
[351275151,1738505463894,-500.0,0.00011232,2]
[351275152,1738505463907,-500.0,0.00011232,2]
[351275153,1738505463921,-904.27,0.00011232,2]
[351275154,1738505463935,-854.39,0.00011232,2]
[351275155,1738505463948,-500.0,0.00011232,2]
[351275156,1738505463962,-366.80500158,0.00011232,2]
[351275157,1738505463976,-2762.56,0.00011232,2]
[351275158,1738505463990,-500.0,0.00011232,2]
[351275159,1738505464003,-500.0,0.00011232,2]
[351275160,1738505464016,-500.0,0.00011232,2]
[351275161,1738505464029,-666.98,0.00011232,2]
[351275162,1738505464044,-500.0,0.00011232,2]
[351275163,1738505464058,-783.0,0.00011232,2]
[351275164,1738505464071,-500.0,0.00011232,2]
[351275165,1738505464086,-500.94699344,0.00011232,2]
[351275166,1738505464099,-500.0,0.00011232,2]
[351275167,1738505464112,-500.0,0.00011232,2]
[351275168,1738505464126,-2104.01,0.00011232,2]
[351275169,1738505464139,-2287.85,0.00011232,2]
[351275170,1738505464151,-500.0,0.00011232,2]
[351275171,1738505464164,-500.0,0.00011232,2]
[351275172,1738505464176,-944.74,0.00011232,2]
[351275173,1738505464189,-505.82,0.00011232,2]
[351275174,1738505464203,-738.27,0.00011232,2]
[351275175,1738505464217,-500.0,0.00011232,2]
[351275176,1738505464231,-500.0,0.00011232,2]
[351275177,1738505464244,-1519.92,0.00011232,2]
[351275178,1738505464258,-1297.85,0.00011232,2]
[351275179,1738505464271,-519.96972504,0.00011232,2]
[351275180,1738505464285,-500.0,0.00011232,2]
[351275181,1738505464299,-500.0,0.00011232,2]
[351275182,1738505464312,-500.0,0.00011232,2]
[351275183,1738505464326,-500.0,0.00011232,2]
[351275184,1738505464339,-500.0,0.00011232,2]
[351275185,1738505464352,-500.0,0.00011232,2]
[351275186,1738505464365,-500.0,0.00011232,2]
[351275187,1738505464379,-643.77,0.00011232,2]
[351275188,1738505464392,-784.02,0.00011232,2]
[351275189,1738505464405,-500.0,0.00011232,2]
[351275190,1738505464419,-500.0,0.00011232,2]
[351275191,1738505464433,-500.0,0.00011232,2]
[351275192,1738505464448,-500.0,0.00011232,2]
[351275193,1738505464462,-500.0,0.00011232,2]
[351275194,1738505464476,-500.0,0.00011232,2]
[351275195,1738505464489,-500.0,0.00011232,2]
[351275196,1738505464503,-500.0,0.00011232,2]
[351275197,1738505464518,-500.0,0.00011232,2]
[351275198,1738505464535,-529.45,0.00011232,2]
[351275199,1738505464549,-500.0,0.00011232,2]
[351275200,1738505464564,-1418.55,0.00011232,2]
[351275201,1738505464578,-500.0,0.00011232,2]
[351275202,1738505464592,-500.0,0.00011232,2]
[351275203,1738505464608,-517.07,0.00011232,2]
[351275204,1738505464621,-500.0,0.00011232,2]
[351275205,1738505464635,-510.5,0.00011232,2]
[351275206,1738505464648,-500.0,0.00011232,2]
[351275207,1738505464662,-2783.69,0.00011232,2]
[351275208,1738505464674,-1420.23,0.00011232,2]
[351275209,1738505464690,-1225.35,0.00011232,2]
[351275210,1738505464703,-2181.51,0.00011232,2]
[351275211,1738505464716,-500.0,0.00011232,2]
[351275212,1738505464728,-500.0,0.00011232,2]
[351275213,1738505464740,-500.0,0.00011232,2]
[351275214,1738505464752,-500.0,0.00011232,2]
[351275215,1738505464765,-500.0,0.00011232,2]
[351275216,1738505464777,-500.0,0.00011232,2]
[351275217,1738505464790,-942.19,0.00011232,2]
[351275218,1738505464803,-500.0,0.00011232,2]
[351275219,1738505464815,-844.52,0.00011232,2]
[351275220,1738505464827,-507.86,0.00011232,2]
[351275221,1738505464840,-500.0,0.00011232,2]
[351275222,1738505464854,-500.0,0.00011232,2]
[351275223,1738505464866,-1267.86,0.00011232,2]
[351275224,1738505464878,-500.0,0.00011232,2]
[351275225,1738505464890,-500.0,0.00011232,2]
[351275226,1738505464902,-500.0,0.00011232,2]
[351275227,1738505464914,-1642.95,0.00011232,2]
[351275228,1738505464927,-500.0,0.00011232,2]
[351275229,1738505464939,-500.0,0.00011232,2]
[351275230,1738505464952,-5000.0,0.00011232,2]
[351275231,1738505464963,-632.5,0.00011232,2]
[351275232,1738505464975,-500.0,0.00011232,2]
[351275233,1738505464988,-717.96,0.00011232,2]
[351275234,1738505464999,-500.0,0.00011232,2]
[351275235,1738505465012,-862.89,0.00011232,2]
[351275236,1738505465024,-500.0,0.00011232,2]
[351275237,1738505465035,-500.0,0.00011232,2]
[351275238,1738505465049,-520.57465535,0.00011232,2]
[351275239,1738505465062,-978.15,0.00011232,2]
[351275240,1738505465073,-500.0,0.00011232,2]
[351275241,1738505465084,-1851.1,0.00011232,2]
[351275242,1738505465097,-591.76,0.00011232,2]
[351275243,1738505465109,-722.67,0.00011232,2]
[351275244,1738505465120,-500.0,0.00011232,2]
[351275245,1738505465131,-500.0,0.00011232,2]
[351275246,1738505465143,-459.29438232,0.00011232,2]
[351275247,1738505465155,-500.0,0.00011232,2]
[351275249,1738505465167,-520.38,0.00011232,2]
[351275250,1738505465180,-500.0,0.00011232,2]
[351275251,1738505465192,-500.0,0.00011232,2]
[351275252,1738505465205,-1708.12,0.00011232,2]
[351275253,1738505465216,-523.57,0.00011232,2]
[351275254,1738505465228,-500.0,0.00011232,2]
[351275255,1738505465240,-500.0,0.00011232,2]
[351275256,1738505465253,-760.88,0.00011232,2]
[351275257,1738505465264,-500.0,0.00011232,2]
[351275258,1738505465277,-503.32139884,0.00011232,2]
[351275259,1738505465289,-500.0,0.00011232,2]
[351275260,1738505465300,-500.0,0.00011232,2]
[351275261,1738505465312,-500.0,0.00011232,2]
[351275262,1738505465324,-811.43,0.00011232,2]
[351275263,1738505465335,-500.0,0.00011232,2]
[351275264,1738505465347,-1175.0,0.00011232,2]
[351275265,1738505465358,-1373.61,0.00011232,2]
[351275266,1738505465371,-747.24,0.00011232,2]
[351275267,1738505465383,-1105.09,0.00011232,2]
[351275268,1738505465394,-500.0,0.00011232,2]
[351275269,1738505465407,-500.0,0.00011232,2]
[351275270,1738505465418,-1419.66,0.00011232,2]
[351275271,1738505465427,-500.0,0.00011232,2]
[351275272,1738505465438,-899.67,0.00011232,2]
[351275273,1738505465448,-500.0,0.00011232,2]
[351275274,1738505465457,-500.0,0.00011232,2]
[351275275,1738505465467,-500.0,0.00011232,2]
[351275276,1738505465476,-814.85,0.00011232,2]
[351275277,1738505465870,-500.0,0.00011232,2]
[351275278,1738505465911,-967.34,0.00011232,2]
[351275279,1738505465934,-984.06,0.00011232,2]
[351275280,1738505465945,-500.0,0.00011232,2]
[351275281,1738505465955,-500.0,0.00011232,2]
[351275282,1738505465964,-500.0,0.00011232,2]
[351275283,1738505465974,-709.72,0.00011232,2]
[351275284,1738505465984,-500.0,0.00011232,2]
[351275285,1738505465994,-514.55749734,0.00011232,2]
[351275286,1738505466004,-500.0,0.00011232,2]
[351275287,1738505466014,-513.32537294,0.00011232,2]
[351275288,1738505466023,-500.0,0.00011232,2]
[351275289,1738505466033,-580.72,0.00011232,2]
[351275290,1738505466042,-500.0,0.00011232,2]
[351275291,1738505466052,-509.47,0.00011232,2]
[351275292,1738505466062,-500.0,0.00011232,2]
[351275293,1738505466072,-1025.92,0.00011232,2]
[351275294,1738505466082,-1529.4,0.00011232,2]
[351275295,1738505466091,-500.0,0.00011232,2]
[351275296,1738505466101,-500.0,0.00011232,2]
[351275297,1738505466110,-500.0,0.00011232,2]
[351275298,1738505466120,-500.0,0.00011232,2]
[351275299,1738505466129,-500.0,0.00011232,2]
[351275300,1738505466139,-736.8,0.00011232,2]
[351275301,1738505466148,-500.0,0.00011232,2]
[351275302,1738505466158,-500.0,0.00011232,2]
[351275303,1738505466167,-500.0,0.00011232,2]
[351275304,1738505466176,-500.0,0.00011232,2]
[351275305,1738505466187,-500.0,0.00011232,2]
[351275306,1738505466196,-500.0,0.00011232,2]
[351275307,1738505466206,-500.0,0.00011232,2]
[351275308,1738505466216,-500.0,0.00011232,2]
[351275309,1738505466225,-500.0,0.00011232,2]
[351275310,1738505466235,-500.0,0.00011232,2]
[351275311,1738505466244,-794.58,0.00011232,2]
[351275312,1738505466253,-500.0,0.00011232,2]
[351275313,1738505466263,-500.0,0.00011232,2]
[351275314,1738505466272,-515.19,0.00011232,2]
[351275315,1738505466282,-551.09,0.00011232,2]
[351275316,1738505466291,-500.0,0.00011232,2]
[351275317,1738505466301,-500.0,0.00011232,2]
[351275318,1738505466310,-1457.11,0.00011232,2]
[351275319,1738505466320,-500.0,0.00011232,2]
[351275320,1738505466329,-500.0,0.00011232,2]
[351275321,1738505466339,-500.0,0.00011232,2]
[351275322,1738505466348,-500.0,0.00011232,2]
[351275323,1738505466358,-500.0,0.00011232,2]
[351275324,1738505466367,-848.94,0.00011232,2]
[351275325,1738505466377,-562.76,0.00011232,2]
[351275326,1738505466387,-511.5579597,0.00011232,2]
[351275327,1738505466396,-1457.16,0.00011232,2]
[351275328,1738505466406,-512.04,0.00011232,2]
[351275329,1738505466415,-500.0,0.00011232,2]
[351275330,1738505466425,-500.0,0.00011232,2]
[351275331,1738505466436,-500.0,0.00011232,2]
[351275332,1738505466446,-1061.96,0.00011232,2]
[351275333,1738505466456,-1032.24,0.00011232,2]
[351275334,1738505466466,-510.71,0.00011232,2]
[351275335,1738505466475,-500.0,0.00011232,2]
[351275336,1738505466485,-1015.65,0.00011232,2]
[351275337,1738505466495,-500.0,0.00011232,2]
[351275338,1738505466504,-1177.9,0.00011232,2]
[351275339,1738505466515,-679.22,0.00011232,2]
[351275340,1738505466527,-510.5961057,0.00011232,2]
[351275341,1738505466536,-248.10219,0.00011232,2]
[351275342,1738505466547,-500.0,0.00011232,2]
[351275343,1738505466558,-500.0,0.00011232,2]
[351275344,1738505466568,-500.0,0.00011232,2]
[351275345,1738505466577,-584.42,0.00011232,2]
[351275346,1738505466587,-248.10219,0.00011232,2]
[351275347,1738505466598,-516.50969261,0.00011232,2]
[351275348,1738505466608,-500.0,0.00011232,2]
[351275349,1738505466617,-1657.79,0.00011232,2]
[351275350,1738505466627,-1057.32,0.00011232,2]
[351275351,1738505466637,-500.0,0.00011232,2]
[351275352,1738505466646,-500.0,0.00011232,2]
[351275353,1738505466656,-500.0,0.00011232,2]
[351275354,1738505466666,-500.0,0.00011232,2]
[351275355,1738505466675,-500.0,0.00011232,2]
[351275356,1738505466687,-500.0,0.00011232,2]
[351275357,1738505466696,-311.18346566,0.00011232,2]
[351275358,1738505466706,-500.0,0.00011232,2]
[351275359,1738505466715,-737.32,0.00011232,2]
[351275360,1738505466725,-865.79,0.00011232,2]
[351275361,1738505466734,-500.0,0.00011232,2]
[351275362,1738505466743,-500.0,0.00011232,2]
[351275363,1738505466752,-500.0,0.00011232,2]
[351275364,1738505466762,-1316.4,0.00011232,2]
[351275365,1738505466772,-671.26,0.00011232,2]
[351275366,1738505466781,-500.0,0.00011232,2]
[351275367,1738505466790,-500.0,0.00011232,2]
[351275368,1738505466799,-751.62,0.00011232,2]
[351275369,1738505466808,-750.62,0.00011232,2]
[351275370,1738505466818,-1011.53,0.00011232,2]
[351275371,1738505466827,-500.0,0.00011232,2]
[351275372,1738505466836,-521.28067358,0.00011232,2]
[351275373,1738505466845,-500.0,0.00011232,2]
[351275374,1738505466855,-500.0,0.00011232,2]
[351275375,1738505466864,-500.0,0.00011232,2]
[351275376,1738505466873,-1248.28,0.00011232,2]
[351275377,1738505466883,-519.27,0.00011232,2]
[351275378,1738505466892,-500.0,0.00011232,2]
[351275379,1738505466902,-775.41,0.00011232,2]
[351275380,1738505466911,-500.0,0.00011232,2]
[351275381,1738505466921,-500.0,0.00011232,2]
[351275382,1738505466932,-650.78,0.00011232,2]
[351275383,1738505466941,-500.0,0.00011232,2]
[351275384,1738505466951,-301.80702195,0.00011232,2]
[351275385,1738505466960,-448.38552738,0.00011232,2]
[351275386,1738505466970,-500.0,0.00011232,2]
[351275387,1738505466980,-500.0,0.00011232,2]
[351275388,1738505466989,-787.2,0.00011232,2]
[351275389,1738505466999,-332.62406634,0.00011232,2]
[351275390,1738505467009,-330.66579045,0.00011232,2]
[351275391,1738505467019,-500.0,0.00011232,2]
[351275392,1738505467028,-500.0,0.00011232,2]
[351275393,1738505467037,-1398.59,0.00011232,2]
[351275394,1738505467048,-2098.34,0.00011232,2]
[351275395,1738505467058,-586.92244977,0.00011232,2]
[351275396,1738505467068,-500.0,0.00011232,2]
[351275397,1738505467078,-1717.3,0.00011232,2]
[351275398,1738505467087,-543.21739243,0.00011232,2]
[351275399,1738505467097,-535.92,0.00011232,2]
[351275400,1738505467106,-500.0,0.00011232,2]
[351275401,1738505467116,-500.0,0.00011232,2]
[351275402,1738505467126,-520.83,0.00011232,2]
[351275403,1738505467136,-500.0,0.00011232,2]
[351275404,1738505467145,-507.09449631,0.00011232,2]
[351275405,1738505467154,-500.0,0.00011232,2]
[351275406,1738505467164,-1388.03,0.00011232,2]
[351275407,1738505467174,-696.21,0.00011232,2]
[351275408,1738505467184,-638.42,0.00011232,2]
[351275409,1738505467194,-1438.93,0.00011232,2]
[351275410,1738505467204,-1523.64,0.00011232,2]
[351275411,1738505467213,-500.0,0.00011232,2]
[351275412,1738505467223,-500.0,0.00011232,2]
[351275413,1738505467232,-506.4927198,0.00011232,2]
[351275414,1738505467241,-1164.79,0.00011232,2]
[351275415,1738505467251,-636.2806558,0.00011232,2]
[351275416,1738505467261,-500.0,0.00011232,2]
[351275417,1738505467270,-500.0,0.00011232,2]
[351275418,1738505467280,-2008.34,0.00011232,2]
[351275419,1738505467289,-500.0,0.00011232,2]
[351275420,1738505467299,-500.0,0.00011232,2]
[351275421,1738505467309,-867.5,0.00011232,2]
[351275422,1738505467319,-500.0,0.00011232,2]
[351275423,1738505467329,-500.0,0.00011232,2]
[351275424,1738505467339,-500.0,0.00011232,2]
[351275425,1738505467349,-500.0,0.00011232,2]
[351275426,1738505467359,-500.0,0.00011232,2]
[351275427,1738505467369,-930.83,0.00011232,2]
[351275428,1738505467378,-1142.86,0.00011232,2]
[351275429,1738505467388,-1063.97,0.00011232,2]
[351275430,1738505467398,-500.0,0.00011232,2]
[351275431,1738505467409,-500.0,0.00011232,2]
[351275432,1738505467418,-500.0,0.00011232,2]
[351275433,1738505467429,-500.0,0.00011232,2]
[351275434,1738505467439,-500.0,0.00011232,2]
[351275435,1738505467448,-5963.38,0.00011232,2]
[351275436,1738505467458,-632.65,0.00011232,2]
[351275437,1738505467468,-528.98,0.00011232,2]
[351275438,1738505467477,-500.0,0.00011232,2]
[351275439,1738505467487,-939.46,0.00011232,2]
[351275440,1738505467496,-500.0,0.00011232,2]
[351275441,1738505467506,-2575.73,0.00011232,2]
[351275442,1738505467516,-1411.82,0.00011232,2]
[351275443,1738505467529,-500.0,0.00011232,2]
[351275444,1738505467538,-500.0,0.00011232,2]
[351275445,1738505467547,-500.0,0.00011232,2]
[351275446,1738505467557,-500.0,0.00011232,2]
[351275447,1738505467566,-4332.07,0.00011232,2]
[351275448,1738505467575,-500.0,0.00011232,2]
[351275449,1738505467585,-500.0,0.00011232,2]
[351275450,1738505467596,-500.0,0.00011232,2]
[351275451,1738505467607,-500.0,0.00011232,2]
[351275452,1738505467616,-623.14,0.00011232,2]
[351275453,1738505467626,-808.47,0.00011232,2]
[351275454,1738505467635,-500.0,0.00011232,2]
[351275455,1738505467645,-500.0,0.00011232,2]
[351275456,1738505467655,-500.0,0.00011232,2]
[351275457,1738505467665,-500.0,0.00011232,2]
[351275458,1738505467675,-500.0,0.00011232,2]
[351275459,1738505467687,-1167.23,0.00011232,2]
[351275460,1738505467697,-214.13063949,0.00011232,2]
[351275461,1738505467707,-1073.14,0.00011232,2]
[351275462,1738505467716,-1266.06,0.00011232,2]
[351275463,1738505467727,-500.0,0.00011232,2]
[351275464,1738505467736,-1643.83,0.00011232,2]
[351275465,1738505467746,-1098.43,0.00011232,2]
[351275466,1738505467756,-2134.84,0.00011232,2]
[351275467,1738505467766,-500.0,0.00011232,2]
[351275468,1738505467776,-500.0,0.00011232,2]
[351275469,1738505467785,-7531.63,0.00011232,2]
[351275470,1738505467795,-500.0,0.00011232,2]